bitfinex/quotes_ETHUSD_20250404
["timestamp","ask_amount","ask_price","bid_price","bid_amount"]
[1743749177387,6.28777,1802.7,1802.4,5.7464]
[1743749177707,11.8352,1802.7,1802.4,5.7464]
[1743749178206,6.28777,1802.7,1802.4,5.7464]
[1743749178404,11.83523,1802.7,1802.4,5.7464]
[1743749179106,5.54693,1802.8,1802.5,0.57464]
[1743749179427,5.54693,1802.8,1802.5,3.12806658]
[1743749179719,5.54693,1802.8,1802.5,8.67590658]
[1743749180798,5.59665,1802.9,1802.6,5.54752]
[1743749180995,5.59665,1802.9,1802.7,0.554752]
[1743749181310,5.59665,1802.9,1802.8,5.224]
[1743749191534,6.33715,1802.9,1802.8,5.224]
[1743749192029,5.54729,1802.7,1802.5,0.57464]
[1743749192236,5.54729,1802.7,1802.6,5.223]
[1743749192593,5.54729,1802.7,1802.4,0.5224]
[1743749192594,5.54763,1802.6,1802.4,0.5224]
[1743749192820,5.54763,1802.6,1802.5,5.223]
[1743749194738,11.8352,1802.7,1802.5,5.223]
[1743749194921,5.54754,1802.6,1802.5,5.223]
[1743749195743,6.28779,1802.7,1802.5,5.223]
[1743749196072,5.54754,1802.6,1802.5,5.223]
[1743749197332,6.28779,1802.7,1802.5,5.223]
[1743749197829,5.54754,1802.6,1802.5,5.223]
[1743749198327,5.54785,1802.5,1802.2,42.49642658]
[1743749198627,5.54785,1802.5,1802.3,5.223]
[1743749199518,5.54815,1802.4,1802.2,39.943]
[1743749199843,5.54815,1802.4,1802.3,5.223]
[1743749200248,5.54785,1802.5,1802.3,5.223]
[1743749201052,5.54727,1802.7,1802.4,0.7684]
[1743749201287,5.54697,1802.8,1802.4,8.92528692]
[1743749201443,5.59667,1802.9,1802.5,6.44034869]
[1743749201779,11.14349,1802.9,1802.5,6.44034869]
[1743749202272,5.54693,1802.8,1802.5,6.44034869]
[1743749202435,5.54739,1802.7,1802.5,0.89252869]
[1743749202636,11.09481,1802.7,1802.4,0.7684]
[1743749202836,5.54758,1802.6,1802.4,0.7684]
[1743749203059,5.54794,1802.5,1802.3,5.223]
[1743749203272,11.09604,1802.5,1802.3,5.223]
[1743749203438,5.54794,1802.5,1802.3,5.223]
[1743749203638,11.09597,1802.5,1802.3,5.223]
[1743749204175,5.54815,1802.4,1802.3,5.223]
[1743749206974,11.09599,1802.5,1802.3,5.223]
[1743749207181,5.54794,1802.5,1802.3,5.223]
[1743749207697,11.09598,1802.5,1802.3,5.223]
[1743749207998,5.54794,1802.5,1802.3,5.223]
[1743749208296,5.54794,1802.5,1802.4,5.223]
[1743749215331,5.54759,1802.6,1802.4,7.77642658]
[1743749215490,5.54728,1802.7,1802.5,0.7549]
[1743749215890,11.09473,1802.7,1802.5,0.7549]
[1743749216090,5.54754,1802.6,1802.5,0.7549]
[1743749216727,5.54698,1802.8,1802.5,0.7549]
[1743749216886,5.59663,1802.9,1802.5,7.76285466]
[1743749217085,5.59663,1802.9,1802.5,7.76276466]
[1743749217533,11.14344,1802.9,1802.5,7.76276466]
[1743749217731,5.59663,1802.9,1802.5,13.31046466]
[1743749218227,5.59663,1802.9,1802.7,0.7549]
[1743749218431,5.59663,1802.9,1802.8,5.223]
[1743749220344,5.54755,1802.6,1802.3,1.1640484]
[1743749220639,0.7405,1802.6,1802.1,0.7549]
[1743749220941,5.54823,1802.4,1802.2,5.223]
[1743749221162,5.54823,1802.4,1802.2,5.82079]
[1743749223032,5.54823,1802.4,1802.2,0.59779]
[1743749223241,5.54823,1802.4,1802.3,5.223]
[1743749232971,11.09582,1802.5,1802.3,5.223]
[1743749233275,0.05,1802.9,1802.3,8.223]
[1743749233417,0.05,1802.9,1802.5,2.55342658]
[1743749233624,5.54693,1802.8,1802.5,3.37362658]
[1743749233850,11.09415,1802.8,1802.5,0.8202]
[1743749234248,5.54693,1802.8,1802.5,0.8202]
[1743749234675,11.09412,1802.8,1802.5,0.8202]
[1743749234825,5.54727,1802.7,1802.4,3.8223]
[1743749235029,5.54727,1802.7,1802.6,5.223]
[1743749236155,6.09727,1802.7,1802.6,5.223]
[1743749236445,7.335752,1802.7,1802.6,5.223]
[1743749237045,5.54727,1802.7,1802.6,5.223]
[1743749239961,5.5478,1802.6,1802.3,3.37362658]
[1743749240162,5.54785,1802.5,1802.4,5.223]
[1743749240667,5.5478,1802.6,1802.4,5.223]
[1743749241035,11.09554,1802.6,1802.4,5.223]
[1743749241366,5.54785,1802.5,1802.4,5.223]
[1743749241778,5.54816,1802.4,1802.2,0.8202]
[1743749241976,5.54816,1802.4,1802.3,5.223]
[1743749242350,5.54785,1802.5,1802.3,5.223]
[1743749243267,5.54815,1802.4,1802.3,5.223]
[1743749243571,5.54785,1802.5,1802.3,5.223]
[1743749243869,11.09596,1802.5,1802.3,5.223]
[1743749244170,5.54785,1802.5,1802.3,5.223]
[1743749244742,5.54815,1802.4,1802.3,5.223]
[1743749250354,11.09588,1802.5,1802.3,5.223]
[1743749254302,5.54815,1802.4,1802.3,5.223]
[1743749257204,0.76441346,1802.4,1802.0,0.7948]
[1743749257387,5.54932,1802.1,1801.9,5.223]
[1743749257600,5.5495,1802.0,1801.9,5.223]
[1743749257803,5.54969,1801.9,1801.8,39.945]
[1743749258005,5.54969,1801.9,1801.8,45.168]
[1743749259987,5.5495,1802.0,1801.8,45.168]
[1743749260330,5.54969,1801.9,1801.8,45.168]
[1743749260525,5.54969,1801.9,1801.8,39.945]
[1743749260732,5.54969,1801.9,1801.8,45.168]
[1743749260916,5.55027,1801.8,1801.7,5.223]
[1743749263017,5.55039,1801.7,1801.4,3.33452658]
[1743749263328,5.55039,1801.7,1801.6,5.223]
[1743749270004,5.55039,1801.7,1801.4,0.7811]
[1743749270005,5.55074,1801.6,1801.4,0.7811]
[1743749270323,5.55062,1801.6,1801.5,5.224]
[1743749272731,5.55095,1801.5,1801.3,5.225]
[1743749273626,5.55062,1801.6,1801.3,5.225]
[1743749273940,11.10143,1801.6,1801.4,0.7775]
[1743749276554,5.55092,1801.5,1801.4,0.7775]
[1743749276725,11.10211,1801.5,1801.3,5.225]
[1743749278117,5.55123,1801.4,1801.3,5.225]
[1743749280365,5.55058,1801.7,1801.3,8.55592658]
[1743749280517,5.55058,1801.7,1801.4,0.85559266]
[1743749280708,5.55058,1801.7,1801.3,14.10732658]
[1743749280920,5.55058,1801.7,1801.3,14.05732658]
[1743749281746,5.55058,1801.7,1801.3,14.05729658]
[1743749281955,5.55058,1801.7,1801.3,19.60865658]
[1743749282452,5.55058,1801.7,1801.3,18.83115658]
[1743749282674,5.55058,1801.7,1801.4,0.7775]
[1743749283282,11.10108,1801.7,1801.4,0.7775]
[1743749283581,5.5505,1801.7,1801.4,0.7775]
[1743749283788,11.101,1801.7,1801.4,0.7775]
[1743749284182,5.5505,1801.7,1801.4,0.7775]
[1743749284879,5.5505,1801.7,1801.4,6.32873]
[1743749286979,5.5505,1801.7,1801.4,0.7775]
[1743749287284,5.55071,1801.6,1801.4,0.7775]
[1743749288295,5.5505,1801.7,1801.4,0.7775]
[1743749288893,11.101,1801.7,1801.4,0.7775]
[1743749289600,5.55069,1801.6,1801.4,0.7775]
[1743749292001,11.10151,1801.6,1801.4,0.7775]
[1743749292202,5.55069,1801.6,1801.4,0.7775]
[1743749293003,11.10156,1801.6,1801.4,0.7775]
[1743749293206,5.55069,1801.6,1801.4,0.7775]
[1743749296205,11.10155,1801.6,1801.4,0.7775]
[1743749296408,5.55033,1801.7,1801.4,0.7775]
[1743749296718,11.10083,1801.7,1801.4,0.7775]
[1743749297008,5.55063,1801.6,1801.4,0.7775]
[1743749297210,5.55063,1801.6,1801.5,5.225]
[1743749304226,5.55092,1801.5,1801.2,6.36169]
[1743749304428,5.55092,1801.5,1801.3,5.225]
[1743749305848,5.55064,1801.6,1801.4,0.81]
[1743749306358,5.55092,1801.5,1801.4,0.81]
[1743749306502,5.55064,1801.6,1801.4,0.81]
[1743749306697,11.10144,1801.6,1801.4,0.81]
[1743749307001,5.55064,1801.6,1801.4,0.81]
[1743749310054,6.660738,1801.6,1801.4,0.81]
[1743749310215,6.660738,1801.6,1801.3,6.035]
[1743749310912,6.660738,1801.6,1801.4,5.224]
[1743749311837,12.211548,1801.6,1801.4,5.224]
[1743749312527,6.660738,1801.6,1801.4,5.224]
[1743749312735,5.55064,1801.6,1801.4,5.224]
[1743749318076,11.10146,1801.6,1801.4,5.224]
[1743749318275,5.55064,1801.6,1801.4,5.224]
[1743749319080,5.55092,1801.5,1801.4,5.224]
[1743749319281,5.5513,1801.4,1801.1,9.76715475]
[1743749319433,5.5513,1801.4,1801.2,5.224]
[1743749319834,5.55163,1801.3,1801.1,0.7885]
[1743749320073,11.1034,1801.3,1801.2,5.224]
[1743749320996,11.1034,1801.3,1801.0,39.965]
[1743749321317,5.55185,1801.2,1801.1,5.224]
[1743749321491,5.55216,1801.1,1801.0,45.189]
[1743749322206,5.55216,1801.1,1801.0,39.965]
[1743749322368,5.55216,1801.1,1801.0,45.189]
[1743749330401,5.55185,1801.2,1801.0,45.189]
[1743749330570,5.55185,1801.2,1801.0,45.9775]
[1743749330777,5.55185,1801.2,1801.0,6.0125]
[1743749331318,5.55216,1801.1,1801.0,6.0125]
[1743749331610,5.55216,1801.1,1801.0,5.224]
[1743749333987,5.55216,1801.1,1801.0,5.225]
[1743749337291,6.662564,1801.1,1801.0,5.225]
[1743749338423,5.55216,1801.1,1801.0,5.225]
[1743749342112,6.29266,1801.1,1801.0,5.225]
[1743749343021,5.55336,1800.8,1800.6,39.973]
[1743749343229,5.55389,1800.6,1800.2,6.32122]
[1743749343533,5.55389,1800.6,1800.4,5.225]
[1743749344328,5.55401,1800.5,1800.4,5.225]
[1743749344482,5.55389,1800.6,1800.4,5.225]
[1743749344816,5.55389,1800.6,1800.5,5.225]
[1743749353326,5.55343,1800.7,1800.5,5.225]
[1743749353498,11.10702,1800.7,1800.5,5.225]
[1743749353685,5.5537,1800.6,1800.5,5.225]
[1743749355119,0.7405,1800.5,1800.3,5.226]
[1743749355324,5.55432,1800.4,1800.2,5.226]
[1743749355619,6.29481,1800.5,1800.2,5.226]
[1743749355829,5.55431,1800.5,1800.3,0.7567]
[1743749356623,11.10851,1800.5,1800.3,0.7567]
[1743749356792,5.5542,1800.5,1800.3,0.7567]
[1743749358044,5.55432,1800.4,1800.2,5.226]
[1743749358403,5.55432,1800.4,1800.3,5.226]
[1743749360109,5.55432,1800.4,1800.1,0.8067]
[1743749360110,5.55493,1800.2,1800.1,0.05]
[1743749368867,5.55474,1800.3,1800.1,0.05]
[1743749369026,5.55474,1800.3,1800.2,5.227]
[1743749374775,5.55436,1800.4,1800.2,5.227]
[1743749375433,11.10889,1800.4,1800.2,5.227]
[1743749376079,5.55308,1800.8,1800.3,8.87677658]
[1743749376240,5.55349,1800.7,1800.5,2.55342658]
[1743749376558,5.55349,1800.7,1800.6,5.227]
[1743749384392,11.84685,1800.8,1800.6,5.227]
[1743749384702,5.55308,1800.8,1800.6,5.227]
[1743749384861,5.55308,1800.8,1800.6,6.0292]
[1743749386998,5.55308,1800.8,1800.6,7.187521]
[1743749389101,5.55339,1800.7,1800.4,0.7701]
[1743749389303,5.55339,1800.7,1800.5,5.226]
[1743749389861,5.55371,1800.6,1800.5,5.226]
[1743749393883,11.10707,1800.7,1800.5,5.226]
[1743749394771,5.5537,1800.6,1800.5,5.226]
[1743749406350,5.55314,1800.8,1800.5,8.03853567]
[1743749406704,5.55314,1800.8,1800.6,1.45983567]
[1743749406904,11.107,1800.7,1800.5,6.0561]
[1743749407344,5.5534,1800.7,1800.5,6.0561]
[1743749407543,5.5537,1800.6,1800.5,5.226]
[1743749414851,5.55403,1800.5,1800.3,2.28993567]
[1743749415056,5.55403,1800.5,1800.4,5.225]
[1743749415262,5.55341,1800.7,1800.4,7.29034567]
[1743749415412,5.55341,1800.7,1800.5,0.7519]
[1743749415925,5.55338,1800.8,1800.5,0.7519]
[1743749415926,5.55338,1800.8,1800.5,6.3059]
[1743749416130,5.55338,1800.8,1800.5,6.36143439]
[1743749417114,5.55278,1800.9,1800.5,7.82115006]
[1743749417458,6.10181,1801.3,1800.8,7.01280567]
[1743749417459,5.55197,1801.2,1800.8,7.01280567]
[1743749417755,5.55197,1801.2,1801.0,1.45983567]
[1743749417983,5.55181,1801.3,1801.1,0.7519]
[1743749418135,5.55181,1801.3,1801.1,2.21173567]
[1743749418572,11.10358,1801.3,1801.1,2.21173567]
[1743749418879,11.10358,1801.3,1801.0,5.225]
[1743749418880,5.55234,1801.1,1801.0,5.225]
[1743749419351,5.55234,1801.1,1800.8,2.21173567]
[1743749419550,11.1048,1801.1,1801.0,5.224]
[1743749419752,5.55234,1801.1,1801.0,5.224]
[1743749419971,6.662763,1801.1,1801.0,5.224]
[1743749421636,5.55234,1801.1,1801.0,5.224]
[1743749426801,5.55139,1801.4,1801.1,0.7837]
[1743749427164,5.55139,1801.4,1801.1,3.33690996]
[1743749428301,5.55139,1801.4,1801.1,8.94456584]
[1743749428500,11.10203,1801.5,1801.1,8.94456584]
[1743749428673,5.55097,1801.5,1801.1,10.91665942]
[1743749428877,5.55097,1801.5,1801.1,10.91665919]
[1743749429806,5.55097,1801.5,1801.2,0.7837]
[1743749429954,5.55065,1801.6,1801.2,6.33542]
[1743749430159,5.55065,1801.6,1801.4,0.7837]
[1743749430359,5.55032,1801.7,1801.5,5.223]
[1743749430603,5.55032,1801.7,1801.5,7.77620996]
[1743749431162,5.55005,1801.8,1801.5,7.77620996]
[1743749431358,11.10029,1801.8,1801.5,7.77620996]
[1743749431562,11.10029,1801.8,1801.5,8.47980734]
[1743749431868,5.54973,1801.9,1801.6,0.7837]
[1743749432799,5.54949,1802.0,1801.6,6.33429]
[1743749433097,5.5499,1801.9,1801.7,0.7837]
[1743749433260,5.55044,1801.7,1801.5,6.0067]
[1743749433455,5.55044,1801.7,1801.6,0.60067]
[1743749434493,5.55062,1801.6,1801.5,5.223]
[1743749434893,5.55062,1801.6,1801.4,39.976]
[1743749435056,5.55062,1801.6,1801.5,5.222]
[1743749438263,11.10084,1801.7,1801.5,5.222]
[1743749438463,5.55035,1801.7,1801.5,5.222]
[1743749438709,5.55002,1801.8,1801.5,7.89769096]
[1743749438914,11.10021,1801.8,1801.6,0.783]
[1743749439277,5.55031,1801.7,1801.6,0.783]
[1743749442516,5.54924,1802.1,1801.6,8.88678996]
[1743749442714,0.7405,1802.3,1801.9,2.55320996]
[1743749442914,5.54892,1802.2,1802.0,5.222]
[1743749443930,5.54908,1802.1,1802.0,5.222]
[1743749446940,5.55031,1801.7,1801.4,39.976]
[1743749447232,5.55031,1801.7,1801.5,5.221]
[1743749448131,5.55062,1801.6,1801.5,5.221]
[1743749448790,5.55062,1801.6,1801.2,40.746]
[1743749448991,5.55147,1801.4,1801.3,5.223]
[1743749449625,11.10213,1801.5,1801.3,5.223]
[1743749449789,5.55123,1801.4,1801.2,40.746]
[1743749450013,5.55123,1801.4,1801.3,5.224]
[1743749450796,5.55154,1801.3,1801.2,39.963]
[1743749451089,5.55154,1801.3,1801.2,45.189]
[1743749453021,5.55154,1801.3,1801.2,45.188]
[1743749453217,5.55277,1800.9,1800.7,0.7953]
[1743749453437,5.55277,1800.9,1800.6,3.34850996]
[1743749453646,5.55277,1800.9,1800.7,5.23]
[1743749454054,5.55316,1800.8,1800.7,5.23]
[1743749454419,5.55277,1800.9,1800.7,5.23]
[1743749454654,5.55247,1801.0,1800.7,5.23]
[1743749454958,5.55247,1801.0,1800.7,6.087851]
[1743749456065,11.1052,1801.0,1800.7,6.087851]
[1743749456757,5.55247,1801.0,1800.7,6.087851]
[1743749457268,11.10516,1801.0,1800.7,6.087851]
[1743749457619,5.55283,1800.9,1800.7,6.087851]
[1743749458855,5.55308,1800.8,1800.7,5.23]
[1743749459068,6.29358,1800.8,1800.7,5.23]
[1743749460632,5.55308,1800.8,1800.7,5.23]
[1743749461040,5.55356,1800.7,1800.5,39.965]
[1743749461551,5.55356,1800.7,1800.6,5.229]
[1743749462353,5.55308,1800.8,1800.6,5.229]
[1743749462514,0.7405,1801.2,1800.7,6.34854]
[1743749462719,5.55226,1801.1,1800.8,2.55320996]
[1743749462920,11.10464,1801.1,1800.8,2.55320996]
[1743749463121,5.55294,1800.9,1800.7,0.7953]
[1743749463368,11.10593,1800.9,1800.7,1.69453809]
[1743749463667,11.10644,1800.8,1800.6,5.229]
[1743749463824,5.55308,1800.8,1800.6,5.229]
[1743749466670,11.1064,1800.8,1800.6,5.229]
[1743749466874,5.55339,1800.7,1800.6,5.229]
[1743749468477,11.10701,1800.7,1800.6,5.227]
[1743749468686,5.55339,1800.7,1800.6,5.227]
[1743749472568,5.55462,1800.3,1800.2,0.7943]
[1743749472770,5.55439,1800.4,1800.2,6.0203]
[1743749473150,11.1089,1800.4,1800.2,6.0203]
[1743749473345,5.55439,1800.4,1800.2,6.0203]
[1743749475174,5.55406,1800.5,1800.2,6.0203]
[1743749475538,5.55406,1800.5,1800.2,8.57350996]
[1743749476043,5.55406,1800.5,1800.2,3.34750996]
[1743749476249,5.55432,1800.4,1800.3,5.229]
[1743749478245,5.55406,1800.5,1800.3,5.229]
[1743749480297,5.55374,1800.6,1800.3,5.229]
[1743749480441,5.55343,1800.7,1800.4,2.55320996]
[1743749480646,5.55343,1800.7,1800.5,0.7943]
[1743749480997,5.5531,1800.8,1800.5,0.7943]
[1743749481296,5.5531,1800.8,1800.5,6.34829]
[1743749481501,5.55251,1801.0,1800.7,5.55331]
[1743749481675,5.55251,1801.0,1800.8,5.228]
[1743749481676,11.10518,1801.0,1800.8,5.228]
[1743749481989,5.55277,1800.9,1800.8,5.228]
[1743749487290,6.663298,1800.9,1800.8,5.228]
[1743749488444,5.55277,1800.9,1800.8,5.228]
[1743749488642,5.55251,1801.0,1800.8,5.228]
[1743749489583,11.10516,1801.0,1800.8,5.228]
[1743749489889,5.55277,1800.9,1800.8,5.228]
[1743749490250,5.55355,1800.7,1800.4,0.7934]
[1743749490473,5.55355,1800.7,1800.5,5.224]
[1743749490792,11.10724,1800.7,1800.5,5.224]
[1743749490989,5.5537,1800.6,1800.4,0.7934]
[1743749491154,5.55355,1800.7,1800.6,5.224]
[1743749491491,5.55312,1800.8,1800.6,5.224]
[1743749492088,5.55339,1800.7,1800.6,5.224]
[1743749493595,5.55321,1800.8,1800.6,5.224]
[1743749493804,5.55321,1800.8,1800.7,0.7934]
[1743749495299,5.55278,1800.9,1800.7,0.7934]
[1743749495599,5.5525,1801.0,1800.7,0.7934]
[1743749496000,5.5525,1801.0,1800.7,3.34660996]
[1743749496616,11.10516,1801.0,1800.7,3.34660996]
[1743749496911,5.5525,1801.0,1800.7,3.34660996]
[1743749497314,11.10518,1801.0,1800.7,3.34660996]
[1743749497909,11.10516,1801.0,1800.7,3.34660996]
[1743749498511,11.10515,1801.0,1800.7,3.34660996]
[1743749498710,5.5525,1801.0,1800.7,4.75902596]
[1743749499007,5.5528,1800.9,1800.7,4.75902596]
[1743749500697,5.5528,1800.9,1800.7,2.205816]
[1743749500901,5.5528,1800.9,1800.7,0.7934]
[1743749501410,5.55249,1801.0,1800.7,3.34660996]
[1743749501599,5.55249,1801.0,1800.7,3.40213721]
[1743749501981,5.55249,1801.0,1800.7,3.34660996]
[1743749502315,5.55249,1801.0,1800.7,3.4021372]
[1743749502518,5.55249,1801.0,1800.7,5.37546992]
[1743749504414,5.55249,1801.0,1800.7,10.92883992]
[1743749504614,5.5522,1801.1,1800.7,16.48206992]
[1743749504794,5.5522,1801.1,1800.7,16.42654268]
[1743749505126,11.10459,1801.1,1800.7,10.87317268]
[1743749505287,5.5522,1801.1,1800.9,0.7899]
[1743749505493,5.55185,1801.2,1801.0,5.223]
[1743749508626,11.1039,1801.2,1801.0,5.223]
[1743749508827,5.55216,1801.1,1801.0,5.223]
[1743749509129,6.29266,1801.1,1801.0,5.223]
[1743749509340,7.477111,1801.1,1801.0,5.223]
[1743749510314,6.29266,1801.1,1801.0,5.223]
[1743749518649,5.55216,1801.1,1801.0,5.223]
[1743749520919,0.7405,1800.9,1800.3,5.223]
[1743749521146,11.10833,1800.5,1800.2,0.7947]
[1743749521458,11.10833,1800.5,1800.3,5.229]
[1743749522563,5.55432,1800.4,1800.3,5.229]
[1743749523053,5.55413,1800.5,1800.3,5.229]
[1743749523262,5.55372,1800.6,1800.4,0.7947]
[1743749523939,5.55372,1800.6,1800.4,0.85023673]
[1743749524139,5.55372,1800.6,1800.4,1.95808067]
[1743749524854,5.5534,1800.7,1800.4,1.95808067]
[1743749525164,5.55371,1800.6,1800.4,1.95808067]
[1743749526464,5.55371,1800.6,1800.4,2.01361741]
[1743749526764,5.5534,1800.7,1800.4,1.95808067]
[1743749526964,11.10702,1800.7,1800.4,1.95808067]
[1743749527767,5.55401,1800.5,1800.2,3.7947]
[1743749527970,5.55447,1800.4,1800.3,5.226]
[1743749528274,5.55401,1800.5,1800.3,5.226]
[1743749531262,5.55372,1800.6,1800.3,5.28154013]
[1743749531588,5.55411,1800.5,1800.4,5.225]
[1743749534792,5.55318,1800.8,1800.5,0.8063]
[1743749534928,11.10651,1800.8,1800.5,3.35950996]
[1743749535133,11.10651,1800.8,1800.5,3.41504404]
[1743749535773,11.10651,1800.8,1800.5,3.35950996]
[1743749535967,5.5534,1800.7,1800.5,3.35950996]
[1743749537297,5.55318,1800.8,1800.5,4.32574494]
[1743749537463,5.55318,1800.8,1800.5,9.87974494]
[1743749538197,11.1065,1800.8,1800.5,4.27021096]
[1743749540274,0.7405,1800.7,1800.3,40.7893]
[1743749540475,6.29392,1800.7,1800.6,5.224]
[1743749546708,5.55342,1800.7,1800.6,5.224]
[1743749550485,5.5522,1801.1,1800.7,6.35855]
[1743749550823,5.55189,1801.2,1800.9,0.8053]
[1743749550970,5.55158,1801.3,1801.0,5.224]
[1743749551484,5.55158,1801.3,1801.1,0.8053]
[1743749552927,6.29252,1801.2,1801.0,5.224]
[1743749553223,5.5524,1801.1,1800.8,3.0]
[1743749553435,5.5524,1801.1,1800.9,5.524]
[1743749555685,11.10478,1801.1,1800.9,5.524]
[1743749555920,5.55247,1801.0,1800.9,5.224]
[1743749556889,5.55238,1801.1,1800.9,5.224]
[1743749557924,5.55188,1801.2,1800.9,7.77720996]
[1743749558126,5.55188,1801.2,1800.9,8.58120996]
[1743749558518,11.10395,1801.2,1800.9,8.58120996]
[1743749558906,5.55188,1801.2,1800.9,8.58120996]
[1743749559103,5.55188,1801.2,1800.9,10.29462396]
[1743749559303,5.55158,1801.3,1801.0,0.804]
[1743749559510,5.55201,1801.2,1801.0,0.804]
[1743749564937,5.55251,1801.0,1800.8,3.0]
[1743749565234,5.55216,1801.1,1800.9,5.223]
[1743749567050,5.55247,1801.0,1800.9,5.223]
[1743749569578,5.55308,1800.8,1800.7,39.976]
[1743749569860,5.55308,1800.8,1800.7,45.201]
[1743749570768,5.55308,1800.8,1800.7,39.976]
[1743749570949,5.55308,1800.8,1800.7,45.2]
[1743749571321,6.29358,1800.8,1800.7,45.2]
[1743749571559,5.55397,1800.6,1800.3,3.8047]
[1743749571855,6.29389,1800.7,1800.1,0.8547]
[1743749572061,5.55478,1800.3,1800.2,5.236]
[1743749573257,5.55436,1800.4,1800.2,5.236]
[1743749573457,5.554,1800.6,1800.4,0.7623]
[1743749573663,5.5534,1800.7,1800.4,3.31550996]
[1743749574661,5.5534,1800.7,1800.4,8.86977996]
[1743749574852,5.5534,1800.7,1800.4,3.31550996]
[1743749575158,11.10699,1800.7,1800.4,3.31550996]
[1743749575359,11.10699,1800.7,1800.5,0.331551]
[1743749575662,5.5534,1800.7,1800.6,5.241]
[1743749577432,5.55314,1800.8,1800.6,5.241]
[1743749577625,5.55339,1800.7,1800.6,5.241]
[1743749579670,6.29389,1800.7,1800.6,5.241]
[1743749580227,5.55408,1800.5,1800.2,6.31722]
[1743749580473,5.55408,1800.5,1800.3,5.867722]
[1743749580671,5.55371,1800.6,1800.3,8.42093196]
[1743749580828,5.55371,1800.6,1800.4,0.7623]
[1743749582159,5.55401,1800.5,1800.3,5.867722]
[1743749582455,5.55432,1800.4,1800.3,5.236]
[1743749582871,5.55401,1800.5,1800.3,5.236]
[1743749583169,5.5534,1800.7,1800.3,13.34371996]
[1743749583400,5.5534,1800.7,1800.4,6.31654]
[1743749583613,5.5534,1800.7,1800.5,0.631654]
[1743749584098,5.55311,1800.8,1800.5,0.631654]
[1743749584307,5.55283,1800.9,1800.5,8.73884396]
[1743749584607,5.55283,1800.9,1800.6,0.7623]
[1743749584784,5.55283,1800.9,1800.7,5.237]
[1743749584983,5.55283,1800.9,1800.7,5.83693]
[1743749587905,5.55248,1801.0,1800.7,5.83693]
[1743749588100,5.55217,1801.1,1800.8,0.8291]
[1743749588714,11.10454,1801.1,1800.8,0.8291]
[1743749590268,11.10453,1801.1,1800.8,0.8291]
[1743749590470,11.10453,1801.1,1800.8,2.306345]
[1743749590797,5.55255,1801.0,1800.8,2.306345]
[1743749591016,11.10573,1800.9,1800.6,3.7745]
[1743749591204,11.10573,1800.9,1800.7,5.233]
[1743749591205,5.55277,1800.9,1800.7,5.233]
[1743749593299,11.10573,1800.9,1800.7,5.233]
[1743749593613,5.55308,1800.8,1800.7,5.233]
[1743749594119,5.55277,1800.9,1800.7,5.233]
[1743749594325,5.55277,1800.9,1800.7,6.089071]
[1743749596521,11.10573,1800.9,1800.7,6.089071]
[1743749596679,5.55277,1800.9,1800.7,6.089071]
[1743749596879,11.10576,1800.9,1800.7,6.089071]
[1743749597323,11.10576,1800.9,1800.5,0.631654]
[1743749597324,5.55277,1800.9,1800.5,0.631654]
[1743749597525,5.55401,1800.5,1800.3,43.7585]
[1743749597681,11.10829,1800.5,1800.4,5.228]
[1743749598628,5.55432,1800.4,1800.3,39.984]
[1743749598786,5.55432,1800.4,1800.3,45.214]
[1743749601433,5.55401,1800.5,1800.3,45.214]
[1743749602188,5.55401,1800.5,1800.3,47.76720996]
[1743749603435,5.55344,1800.7,1800.4,0.7711]
[1743749603720,5.55344,1800.7,1800.4,0.82663618]
[1743749603924,5.55313,1800.8,1800.5,2.55320996]
[1743749604129,5.5534,1800.7,1800.5,2.55320996]
[1743749604291,5.5534,1800.7,1800.5,3.44661057]
[1743749604680,5.5534,1800.7,1800.5,2.55320996]
[1743749608038,5.55421,1800.5,1800.3,45.214]
[1743749608212,11.10841,1800.5,1800.3,45.214]
[1743749608793,5.5542,1800.5,1800.3,45.214]
[1743749609620,11.10846,1800.5,1800.3,45.214]
[1743749609816,5.5542,1800.5,1800.3,45.214]
[1743749610006,5.5542,1800.5,1800.3,5.23]
[1743749610221,11.10839,1800.5,1800.3,5.23]
[1743749610634,5.55419,1800.5,1800.3,5.23]
[1743749611937,5.55375,1800.6,1800.3,5.23]
[1743749612136,5.55375,1800.6,1800.4,3.07620996]
[1743749612339,5.55401,1800.5,1800.4,3.07620996]
[1743749614639,5.55375,1800.6,1800.4,3.07620996]
[1743749614933,11.10764,1800.6,1800.4,3.07620996]
[1743749615540,5.55375,1800.6,1800.4,3.07620996]
[1743749617836,5.55462,1800.4,1800.2,3.0]
[1743749618049,5.55488,1800.3,1800.1,2.60320996]
[1743749618223,5.55488,1800.3,1800.2,5.229]
[1743749618401,11.10972,1800.3,1800.2,5.229]
[1743749618601,5.55484,1800.3,1800.2,5.229]
[1743749620828,11.10976,1800.3,1800.2,5.226]
[1743749622439,11.10976,1800.3,1800.1,0.05]
[1743749622613,11.10976,1800.3,1800.2,5.224]
[1743749623149,11.10976,1800.3,1800.1,0.05]
[1743749623150,5.55493,1800.2,1800.1,0.05]